bitfinex/quotes_BTCUSD_20241120
["timestamp","ask_amount","ask_price","bid_price","bid_amount"]
[1732093555196,0.37179855,93165.0,93164.0,0.0017128]
[1732093557274,0.34879855,93165.0,93164.0,0.0017128]
[1732093557959,0.29949855,93165.0,93164.0,0.0017128]
[1732093562650,0.21639855,93165.0,93164.0,0.0017128]
[1732093562879,0.0008565,93166.0,93164.0,0.0017128]
[1732093563347,0.0008565,93166.0,93165.0,0.00501929]
[1732093565618,0.1081915,93166.0,93165.0,0.00501929]
[1732093566063,0.30035405,93166.0,93165.0,0.00501929]
[1732093566496,0.107336,93165.0,93164.0,0.0017128]
[1732093566712,0.23939855,93165.0,93164.0,0.0017128]
[1732093566931,0.24939855,93165.0,93164.0,0.0017128]
[1732093567395,0.23939855,93165.0,93164.0,0.0017128]
[1732093567609,0.24939855,93165.0,93164.0,0.0017128]
[1732093567821,0.23939855,93165.0,93164.0,0.0017128]
[1732093568284,0.21639855,93165.0,93164.0,0.0017128]
[1732093568727,0.26369855,93165.0,93164.0,0.0017128]
[1732093572028,0.34679855,93165.0,93164.0,0.0017128]
[1732093572445,0.37979855,93165.0,93164.0,0.0017128]
[1732093579114,0.36979855,93165.0,93164.0,0.0017128]
[1732093579319,0.32249855,93165.0,93164.0,0.0017128]
[1732093579524,0.29949855,93165.0,93164.0,0.0017128]
[1732093580653,0.21639855,93165.0,93164.0,0.0017128]
[1732093581130,0.0008565,93166.0,93164.0,0.0017128]
[1732093581812,0.0008565,93166.0,93165.0,0.00503523]
[1732093582941,0.0008565,93166.0,93164.0,0.0017128]
[1732093583423,0.0008565,93166.0,93165.0,0.00503523]
[1732093584087,0.1081915,93166.0,93164.0,0.0017128]
[1732093584587,0.0008565,93166.0,93164.0,0.0017128]
[1732093584828,0.1081915,93166.0,93165.0,0.00503523]
[1732093585070,0.0008565,93166.0,93165.0,0.00503523]
[1732093585314,0.0008565,93166.0,93164.0,0.0017128]
[1732093585794,0.0008565,93166.0,93165.0,0.00502149]
[1732093586032,0.0008565,93166.0,93164.0,0.0017128]
[1732093586479,0.0008565,93166.0,93165.0,0.00502149]
[1732093586480,0.1081915,93166.0,93165.0,0.00502149]
[1732093586710,0.28775405,93166.0,93165.0,0.00502149]
[1732093586940,0.107336,93165.0,93164.0,0.0017128]
[1732093591198,0.21639855,93165.0,93164.0,0.0017128]
[1732093591413,0.1,93165.0,93164.0,0.0017128]
[1732093591626,0.1,93165.0,93164.0,0.00673429]
[1732093591845,0.1,93165.0,93164.0,0.0017128]
[1732093592318,0.1,93165.0,93164.0,0.00673429]
[1732093592545,0.1,93165.0,93164.0,0.0017128]
[1732093592759,0.1,93165.0,93164.0,0.00673429]
[1732093592980,0.1,93165.0,93164.0,0.0017128]
[1732093593187,0.1,93165.0,93164.0,0.00673429]
[1732093595615,0.207336,93165.0,93164.0,0.00674012]
[1732093595823,0.207336,93165.0,93164.0,0.0017128]
[1732093596672,0.31639855,93165.0,93164.0,0.0017128]
[1732093597740,0.20906255,93165.0,93151.0,0.28868922]
[1732093597961,0.107346,93157.0,93151.0,0.28868922]
[1732093598163,0.107346,93157.0,93152.0,0.00502754]
[1732093599223,0.10906255,93164.0,93152.0,0.00502754]
[1732093599433,0.214681,93162.0,93152.0,0.00502754]
[1732093599638,0.107344,93158.0,93152.0,0.00502754]
[1732093601349,0.1,93165.0,93153.0,0.18999865]
[1732093601532,0.1,93165.0,93164.0,0.107337]
[1732093602020,0.1,93165.0,93164.0,0.11236432]
[1732093609117,0.1,93165.0,93164.0,0.00502732]
[1732093609561,0.1,93165.0,93160.0,0.107341]
[1732093609786,0.1,93165.0,93164.0,0.00502732]
[1732093609996,0.207336,93165.0,93158.0,0.09602003]
[1732093610277,0.1,93165.0,93159.0,0.107343]
[1732093610496,0.1,93165.0,93160.0,0.107341]
[1732093610735,0.1,93165.0,93164.0,0.107337]
[1732093611192,0.1,93165.0,93164.0,0.11234224]
[1732093611646,0.1,93165.0,93164.0,0.00500524]
[1732093612108,0.1,93165.0,93161.0,0.10734]
[1732093612360,0.1,93165.0,93164.0,0.00500524]
[1732093612610,0.10734,93162.0,93156.0,0.09603241]
[1732093612836,0.10734,93162.0,93155.0,0.20337941]
[1732093613071,0.1,93165.0,93155.0,0.09603241]
[1732093613299,0.107339,93163.0,93156.0,0.107345]
[1732093613541,0.107339,93163.0,93157.0,0.107345]
[1732093613761,0.1008556,93165.0,93157.0,0.107345]
[1732093613990,0.1008556,93165.0,93154.0,0.09603241]
[1732093614255,0.1008556,93165.0,93156.0,0.107346]
[1732093614256,0.214675,93164.0,93156.0,0.107346]
[1732093614485,0.214675,93164.0,93152.0,0.0017108]
[1732093614486,0.1219,93163.0,93152.0,0.0017108]
[1732093614726,0.214682,93161.0,93152.0,0.0017108]
[1732093614955,0.107348,93155.0,93152.0,0.0017108]
[1732093615173,0.107345,93158.0,93152.0,0.0017108]
[1732093615467,0.107346,93157.0,93152.0,0.0017108]
[1732093615941,0.107344,93159.0,93152.0,0.0017108]
[1732093616165,0.107345,93158.0,93152.0,0.0017108]
[1732093616402,0.10906255,93159.0,93152.0,0.0017108]
[1732093616646,0.107344,93158.0,93152.0,0.0017108]
[1732093616854,0.107346,93157.0,93152.0,0.0017108]
[1732093617490,0.10692478,93158.0,93152.0,0.0017108]
[1732093617712,0.107345,93157.0,93152.0,0.0017108]
[1732093619105,0.10906255,93159.0,93152.0,0.0017108]
[1732093619311,0.107345,93158.0,93152.0,0.1090618]
[1732093619744,0.107345,93157.0,93152.0,0.0017108]
[1732093620156,0.10906255,93159.0,93157.0,0.107345]
[1732093620373,0.10906255,93159.0,93155.0,0.107347]
[1732093620601,0.10906255,93159.0,93152.0,0.0017108]
[1732093620822,0.10906255,93159.0,93153.0,0.107349]
[1732093621051,0.640842,93160.0,93153.0,0.107349]
[1732093621286,0.74990455,93160.0,93153.0,0.107349]
[1732093621509,0.74990455,93160.0,93152.0,0.0017108]
[1732093621510,0.107344,93159.0,93152.0,0.0017108]
[1732093621759,0.107344,93159.0,93152.0,0.1090618]
[1732093621976,0.107344,93158.0,93152.0,0.1090618]
[1732093622188,0.107344,93158.0,93153.0,0.00511292]
[1732093622641,0.64256255,93160.0,93155.0,0.107347]
[1732093622861,0.64256255,93160.0,93156.0,0.00511288]
[1732093623052,0.74990455,93160.0,93156.0,0.00511288]
[1732093623307,0.74990455,93160.0,93154.0,0.107348]
[1732093623530,0.64256255,93160.0,93157.0,0.00511286]
[1732093623774,0.74990455,93160.0,93154.0,0.107348]
[1732093623991,0.64256255,93160.0,93158.0,0.00511285]
[1732093624193,0.74990455,93160.0,93154.0,0.107348]
[1732093624634,0.74990455,93160.0,93152.0,0.0017108]
[1732093624635,0.107346,93156.0,93155.0,0.0051129]
[1732093624839,0.214686,93159.0,93152.0,0.1090618]
[1732093625046,0.107345,93158.0,93153.0,0.11246192]
[1732093625263,0.10906255,93160.0,93153.0,0.00511292]
[1732093625470,0.107345,93157.0,93153.0,0.00511292]
[1732093625727,0.0008555,93158.0,93153.0,0.11246292]
[1732093626623,0.1081995,93158.0,93153.0,0.11246292]
[1732093627911,0.214693,93156.0,93153.0,0.00511292]
[1732093628112,0.107347,93156.0,93153.0,0.00511292]
[1732093628561,0.1081995,93158.0,93153.0,0.00511292]
[1732093628980,0.0008555,93158.0,93153.0,0.00511292]
[1732093629193,0.3228895,93158.0,93153.0,0.00511292]
[1732093629436,0.107346,93157.0,93153.0,0.00511292]
[1732093629635,0.107345,93157.0,93153.0,0.00511292]
[1732093629860,0.0008555,93158.0,93153.0,0.00511292]
[1732093630113,0.1082005,93158.0,93153.0,0.00511292]
[1732093631420,0.0008555,93158.0,93153.0,0.00511292]
[1732093631644,0.0008555,93158.0,93155.0,0.107347]
[1732093631877,0.0008555,93158.0,93157.0,0.107345]
[1732093632106,0.0008555,93158.0,93156.0,0.00510903]
[1732093632323,0.0008555,93158.0,93157.0,0.00510901]
[1732093632749,0.0008555,93158.0,93154.0,0.107348]
[1732093632981,0.0008555,93158.0,93157.0,0.00510901]
[1732093633204,0.0008555,93158.0,93154.0,0.107348]
[1732093633720,0.0008555,93158.0,93156.0,0.107345]
[1732093633938,0.0008555,93158.0,93157.0,0.107345]
[1732093634163,0.0008555,93158.0,93157.0,0.11244474]
[1732093634164,0.00018735,93158.0,93157.0,0.11244474]
[1732093638185,0.08088735,93158.0,93157.0,0.00509974]
[1732093638577,0.08088735,93158.0,93152.0,0.0017108]
[1732093638798,0.08088735,93158.0,93157.0,0.00509974]
[1732093638952,0.08088735,93158.0,93152.0,0.1090608]
[1732093639164,0.18823135,93158.0,93157.0,0.00509974]
[1732093639397,0.18823135,93158.0,93152.0,0.1090608]
[1732093639944,0.18823135,93158.0,93153.0,0.00509865]
[1732093640356,0.107346,93156.0,93153.0,0.00509865]
[1732093640510,0.08088735,93158.0,93153.0,0.00509865]
[1732093640918,0.107346,93157.0,93153.0,0.00509865]
[1732093641946,0.107346,93156.0,93153.0,0.00509865]
[1732093642350,0.107349,93154.0,93153.0,0.00509865]
[1732093642554,0.107349,93154.0,93153.0,0.00149865]
[1732093642769,0.107349,93154.0,93152.0,0.0017108]
[1732093642986,0.214692,93157.0,93152.0,0.0017108]
[1732093643202,0.107346,93157.0,93152.0,0.0017108]
[1732093643404,0.107346,93156.0,93152.0,0.0017108]
[1732093643908,0.107346,93157.0,93152.0,0.0017108]
[1732093644136,0.107346,93157.0,93152.0,0.1090618]
[1732093644354,0.107346,93156.0,93152.0,0.0017108]
[1732093645234,0.10735,93153.0,93152.0,0.0017108]
[1732093645453,0.107348,93155.0,93152.0,0.0017108]
[1732093645884,0.107349,93154.0,93152.0,0.0017108]
[1732093646319,0.32204,93156.0,93152.0,0.0017108]
[1732093646891,0.107348,93155.0,93152.0,0.0017108]
[1732093647976,0.214693,93156.0,93152.0,0.0017108]
[1732093648193,0.10735,93153.0,93152.0,0.0017108]
[1732093654891,1.13882514,93155.0,93152.0,0.0017108]
[1732093655102,1.24617314,93155.0,93152.0,0.0017108]
[1732093655323,0.107349,93154.0,93152.0,0.0017108]
[1732093655737,1.13882514,93155.0,93152.0,0.0017108]
[1732093655956,1.24617314,93155.0,93152.0,0.0017108]
[1732093656577,1.13882514,93155.0,93153.0,0.107349]
[1732093656800,1.13882514,93155.0,93152.0,0.0017108]
[1732093657020,1.13882514,93155.0,93152.0,0.1090608]
[1732093657471,1.13882514,93155.0,93152.0,0.0017108]
[1732093658775,0.10735,93153.0,93152.0,0.0017108]
[1732093659017,0.107349,93154.0,93152.0,0.0017108]
[1732093659245,0.08088735,93158.0,93152.0,0.0017108]
[1732093659246,0.18823135,93158.0,93152.0,0.0017108]
[1732093659896,0.08088735,93158.0,93152.0,0.0017108]
[1732093660123,0.107345,93157.0,93152.0,0.0017108]
[1732093661009,0.107347,93156.0,93152.0,0.0017108]
[1732093661237,0.18823135,93158.0,93152.0,0.0017108]
[1732093661449,0.08088735,93158.0,93152.0,0.0017108]
[1732093661672,0.107346,93157.0,93152.0,0.0017108]
[1732093662347,0.00018735,93158.0,93157.0,0.107345]
[1732093663918,1.13901249,93158.0,93157.0,0.107345]
[1732093666607,0.00018735,93158.0,93153.0,0.10735]
[1732093666820,0.00018735,93158.0,93157.0,0.107345]
[1732093667030,0.00018735,93158.0,93155.0,0.107347]
[1732093667241,0.00018735,93158.0,93157.0,0.107345]
[1732093667877,0.00018735,93158.0,93156.0,0.107346]
[1732093668128,0.00018735,93158.0,93152.0,0.0017108]
[1732093668350,0.10753235,93158.0,93152.0,0.0017108]
[1732093668814,0.107346,93157.0,93152.0,0.0017108]
[1732093669033,0.0818,93157.0,93152.0,0.0017108]
[1732093669468,0.0818,93157.0,93152.0,0.1090618]
[1732093669712,0.0818,93157.0,93152.0,0.0017108]
[1732093672345,0.1085,93155.0,93152.0,0.0017108]
[1732093674117,0.21756255,93155.0,93152.0,0.0017108]
[1732093674571,0.107349,93154.0,93152.0,0.0017108]
[1732093674793,0.21756255,93155.0,93152.0,0.0017108]
[1732093675457,0.10735,93153.0,93152.0,0.0017108]
[1732093675729,0.15476255,93153.0,93152.0,0.0017108]
[1732093675983,0.26211255,93153.0,93152.0,0.0017108]
[1732093677571,0.27211255,93153.0,93152.0,0.0017108]
[1732093678320,0.26211255,93153.0,93152.0,0.0017108]
[1732093679462,0.27211255,93153.0,93152.0,0.0017108]
[1732093681790,0.26211255,93153.0,93152.0,0.0017108]
[1732093682010,0.27211255,93153.0,93152.0,0.0017108]
[1732093682447,0.26211255,93153.0,93152.0,0.0017108]
[1732093682671,0.27211255,93153.0,93152.0,0.0017108]
[1732093687575,0.26211255,93153.0,93152.0,0.0017108]
[1732093687792,0.21641255,93153.0,93152.0,0.0017108]
[1732093692267,0.21726805,93153.0,93152.0,0.0017108]
[1732093692715,0.22726805,93153.0,93152.0,0.0017108]
[1732093692943,1.36609319,93153.0,93152.0,0.0017108]
[1732093693151,0.22726805,93153.0,93152.0,0.0017108]
[1732093693357,1.52559319,93153.0,93152.0,0.0017108]
[1732093693568,1.10059319,93153.0,93152.0,0.0017108]
[1732093693788,0.60376805,93153.0,93152.0,0.0017108]
[1732093697491,0.6864167,93153.0,93152.0,0.0017108]
[1732093697696,0.6872187,93153.0,93152.0,0.0017108]
[1732093699001,1.71754384,93153.0,93152.0,0.0017108]
[1732093701733,0.3107187,93153.0,93152.0,0.0017108]
[1732093705248,1.71754384,93153.0,93152.0,0.0017108]
[1732093709062,1.84434384,93153.0,93152.0,0.0017108]
[1732093709292,1.94060557,93153.0,93152.0,0.0017108]
[1732093709523,0.45114888,93153.0,93152.0,0.0017108]
[1732093709744,0.18792005,93153.0,93152.0,0.0017108]
[1732093710025,1.40848264,93153.0,93152.0,0.0017108]
[1732093710675,1.03198264,93153.0,93152.0,0.0017108]
[1732093711070,1.03198264,93153.0,93147.0,0.08029359]
[1732093711323,1.03198264,93153.0,93149.0,0.107354]
[1732093711570,1.03198264,93153.0,93150.0,0.107352]
[1732093711777,1.03198264,93153.0,93151.0,0.107351]
[1732093711986,1.03198264,93153.0,93152.0,0.107351]
[1732093712419,1.03198264,93153.0,93151.0,0.107351]
[1732093712635,1.29998264,93153.0,93152.0,0.130351]
[1732093712850,1.40848264,93153.0,93152.0,0.176551]
[1732093715723,1.40848264,93153.0,93152.0,0.1774064]
[1732093716668,1.40848264,93153.0,93152.0,0.22070194]
[1732093717961,1.40848264,93153.0,93152.0,0.32070194]
[1732093718208,1.40848264,93153.0,93152.0,0.42190194]
[1732093718425,0.0016575,93153.0,93152.0,0.42190194]
[1732093723049,0.0016575,93153.0,93152.0,0.41190194]
[1732093723269,0.0016575,93153.0,93152.0,0.42190194]
[1732093725610,0.0016575,93153.0,93152.0,0.3456064]
[1732093725846,0.0016575,93153.0,93152.0,0.2082064]
[1732093726073,0.0016575,93153.0,93152.0,0.1082064]
[1732093727325,0.0016575,93153.0,93152.0,0.1312064]
[1732093730392,0.0016575,93153.0,93152.0,0.13335323]
[1732093730631,0.0016575,93153.0,93152.0,0.21600188]
[1732093735240,0.0016575,93153.0,93152.0,0.13335323]
[1732093735472,0.0016575,93153.0,93152.0,0.1312064]
[1732093741078,0.0770575,93153.0,93152.0,0.0008554]
[1732093741968,0.0770575,93153.0,93152.0,0.1082064]
[1732093742620,0.0770575,93153.0,93152.0,0.0008554]
[1732093743038,0.0770575,93153.0,93152.0,0.1082064]
[1732093745767,0.0016575,93153.0,93152.0,0.1082064]
[1732093746084,0.0016575,93153.0,93152.0,0.11035319]
[1732093746287,0.0016575,93153.0,93152.0,0.1312064]
[1732093749364,0.0016575,93153.0,93152.0,0.1082064]
[1732093750908,0.0016575,93153.0,93152.0,0.1312064]
[1732093751580,0.0016575,93153.0,93152.0,0.0008554]
[1732093751807,0.0016575,93153.0,93152.0,0.1082064]
[1732093753774,0.07851271,93157.0,93154.0,0.107348]
[1732093756258,0.07851271,93157.0,93152.0,0.1082064]
[1732093756259,0.18585871,93157.0,93152.0,0.0008554]
[1732093756464,0.07851271,93157.0,93152.0,0.1082064]
[1732093756670,0.07851271,93157.0,93153.0,0.107349]
[1732093757295,0.07851271,93157.0,93153.0,0.214698]
[1732093757498,0.07851271,93157.0,93153.0,0.107349]
[1732093757712,0.07851271,93157.0,93153.0,0.214698]
[1732093757920,0.07851271,93157.0,93153.0,0.107349]
[1732093758348,0.07851271,93157.0,93154.0,0.107349]
[1732093758762,0.07851271,93157.0,93153.0,0.107349]
[1732093758992,0.07851271,93157.0,93153.0,0.214698]
[1732093759408,0.07851271,93157.0,93153.0,0.107349]
[1732093759630,0.07851271,93157.0,93154.0,0.107348]
[1732093759855,0.07851271,93157.0,93152.0,0.0008554]
[1732093760125,0.10735,93153.0,93152.0,0.0008554]
[1732093760341,0.07851271,93157.0,93152.0,0.0008554]
[1732093760542,0.18585871,93157.0,93152.0,0.0008554]
[1732093760783,0.07851271,93157.0,93152.0,0.0008554]
[1732093761011,0.107347,93156.0,93152.0,0.0008554]
[1732093761454,0.107348,93155.0,93152.0,0.0008554]
[1732093761865,0.214693,93156.0,93152.0,0.0008554]
[1732093762079,0.10735,93153.0,93152.0,0.0008554]
[1732093762906,0.107349,93154.0,93152.0,0.0008554]
[1732093763107,0.214695,93155.0,93152.0,0.0008554]
[1732093763308,0.10735,93153.0,93152.0,0.0008554]
[1732093764159,0.214695,93155.0,93152.0,0.0008554]
[1732093764375,0.18756951,93157.0,93152.0,0.1082054]
[1732093764589,0.107348,93155.0,93152.0,0.0008554]
[1732093764822,0.08022351,93157.0,93152.0,0.0008554]
[1732093765259,0.107348,93155.0,93152.0,0.0008554]
[1732093766057,0.18756951,93157.0,93152.0,0.1082064]
[1732093766298,0.107347,93156.0,93152.0,0.0008554]
[1732093766511,0.08022351,93157.0,93152.0,0.0008554]
[1732093766724,0.107348,93155.0,93152.0,0.0008554]
[1732093766937,0.08022351,93157.0,93153.0,0.107349]
[1732093767155,0.08022351,93157.0,93152.0,0.0008554]
[1732093767365,0.107347,93156.0,93152.0,0.0008554]
[1732093767572,0.107348,93155.0,93152.0,0.0008554]
[1732093768264,0.107347,93156.0,93152.0,0.0008554]
[1732093768496,0.10735,93153.0,93152.0,0.0008554]
[1732093769751,0.21641255,93153.0,93152.0,0.0008554]
[1732093769980,0.26171255,93153.0,93152.0,0.0008554]
[1732093771774,0.15265,93153.0,93152.0,0.0008554]
[1732093772392,0.214702,93152.0,93142.0,0.09329854]
[1732093772662,0.214702,93152.0,93138.0,0.107367]
[1732093772864,0.107356,93148.0,93143.0,0.107361]
[1732093773691,0.107354,93150.0,93144.0,0.10736]
[1732093773912,0.107355,93149.0,93144.0,0.10736]
[1732093775648,0.152651,93153.0,93143.0,0.107361]
[1732093775858,0.214702,93152.0,93143.0,0.107361]
[1732093776330,0.214702,93152.0,93144.0,0.10736]
[1732093776534,0.0453,93153.0,93144.0,0.10736]
[1732093776535,0.107355,93149.0,93144.0,0.10736]
[1732093776946,0.107353,93151.0,93145.0,0.107358]
[1732093777162,0.107354,93150.0,93145.0,0.107358]
[1732093777626,0.0453,93153.0,93140.0,0.0008554]
[1732093777627,0.19683235,93153.0,93148.0,0.107355]
[1732093777832,0.08948235,93153.0,93148.0,0.107355]
[1732093778055,0.08948235,93153.0,93142.0,0.107362]
[1732093778277,0.107352,93151.0,93145.0,0.107358]
[1732093778495,0.19683235,93153.0,93146.0,0.107357]
[1732093778703,0.08022351,93157.0,93141.0,0.0958542]
[1732093778916,0.08022351,93157.0,93153.0,0.107349]
[1732093779986,0.08022351,93157.0,93155.0,0.107347]
[1732093780200,0.0017108,93157.0,93156.0,0.107346]
[1732093782600,0.0017108,93157.0,93156.0,0.2032002]
[1732093783736,0.0017108,93157.0,93156.0,0.107346]
[1732093784142,0.0017108,93157.0,93156.0,0.2032002]
[1732093784390,0.0017108,93157.0,93156.0,0.130346]
[1732093785031,0.0017108,93157.0,93156.0,0.2262002]
[1732093786302,0.0017108,93157.0,93156.0,0.130346]
[1732093788080,0.0017108,93157.0,93156.0,0.27412731]
[1732093789150,0.0017108,93157.0,93156.0,0.27382041]
[1732093790238,0.0017108,93157.0,93156.0,0.130346]
[1732093794524,0.0017108,93157.0,93156.0,0.22597551]
[1732093795141,0.0017108,93157.0,93156.0,0.130346]
[1732093795761,0.0017108,93157.0,93156.0,0.107346]
[1732093795966,0.0017108,93157.0,93150.0,0.19126231]
[1732093795967,0.0017108,93157.0,93149.0,0.09562951]
[1732093796176,0.0017108,93157.0,93146.0,0.14344673]
[1732093796177,0.107347,93156.0,93150.0,0.107352]
[1732093796385,0.107347,93156.0,93151.0,0.107351]
[1732093796607,0.107348,93155.0,93151.0,0.107352]
[1732093796817,0.107347,93156.0,93150.0,0.107352]
[1732093797015,0.107347,93156.0,93150.0,0.214705]
[1732093797221,0.107347,93156.0,93150.0,0.107352]
[1732093797465,0.107347,93156.0,93151.0,0.107352]
[1732093798146,0.0017108,93157.0,93150.0,0.107352]
[1732093798603,0.0017108,93157.0,93153.0,0.107349]
[1732093798827,0.1090568,93157.0,93151.0,0.107351]
[1732093799328,0.1090568,93157.0,93151.0,0.214702]
[1732093799536,0.1090568,93157.0,93151.0,0.107351]
[1732093800427,0.1090568,93157.0,93152.0,0.10735]
[1732093804006,0.1090568,93157.0,93152.0,0.2147]
[1732093804246,0.1090568,93157.0,93153.0,0.107349]
[1732093804519,0.1090568,93157.0,93146.0,0.207358]
[1732093804730,0.1090568,93157.0,93152.0,0.214702]
[1732093804955,0.08218735,93158.0,93152.0,0.214702]
[1732093804956,0.07887965,93158.0,93154.0,0.107348]
[1732093805176,0.107346,93157.0,93153.0,0.00480354]
[1732093805401,0.07887965,93158.0,93142.0,0.0008555]
[1732093805614,0.107346,93157.0,93152.0,0.107351]
[1732093805922,0.0017108,93157.0,93155.0,0.107347]
[1732093806135,0.0017108,93157.0,93156.0,0.107346]
[1732093806571,0.0017108,93157.0,93156.0,0.1121698]
[1732093808790,0.26535746,93162.0,93161.0,0.107341]
[1732093809463,0.26535746,93162.0,93161.0,0.1121648]
[1732093812404,0.53085746,93162.0,93161.0,0.1121648]
[1732093813090,0.1,93164.0,93161.0,0.2121648]
[1732093813313,0.1,93164.0,93163.0,0.107338]
[1732093813773,0.1,93164.0,93163.0,0.11215346]
[1732093814009,0.1,93164.0,93163.0,0.33121601]
[1732093814239,0.1,93164.0,93163.0,0.47389962]
[1732093814459,0.1,93164.0,93163.0,0.73017504]
[1732093814677,0.1,93164.0,93163.0,0.49121601]
[1732093815139,0.1,93164.0,93163.0,0.52180488]
[1732093815369,0.1,93164.0,93163.0,0.81009288]
[1732093815602,0.1,93164.0,93163.0,0.52380488]
[1732093816352,0.1,93164.0,93163.0,0.49121601]
[1732093816597,0.1,93164.0,93163.0,0.80999761]
[1732093816811,0.1,93164.0,93163.0,0.80799761]
[1732093817053,0.02357933,93164.0,93163.0,0.52377575]
[1732093817274,0.0008564,93177.0,93176.0,0.252323]
[1732093817495,0.0008564,93177.0,93176.0,0.65640086]
[1732093817717,0.0008564,93177.0,93176.0,0.65840086]
[1732093818246,0.0822,93224.0,93199.0,0.244297]
[1732093818475,0.60232514,93213.0,93199.0,0.5590082]
[1732093818761,0.60232514,93213.0,93199.0,0.47635955]
[1732093819423,0.60232514,93213.0,93199.0,0.51881959]
[1732093821951,0.60232514,93213.0,93199.0,0.52881959]
[1732093823575,0.60232514,93213.0,93199.0,0.40181959]
[1732093830196,0.3008552,93200.0,93199.0,0.40181959]
[1732093830451,0.3008552,93200.0,93199.0,0.207297]
[1732093830664,0.3008552,93200.0,93199.0,0.217297]
[1732093831479,0.3008552,93200.0,93199.0,0.21810014]
[1732093831825,0.3008552,93200.0,93199.0,0.217297]
[1732093833802,0.3008552,93200.0,93199.0,0.207297]
[1732093834250,0.3786552,93200.0,93199.0,0.107297]
[1732093837829,0.3008552,93200.0,93199.0,0.44993955]
[1732093841685,0.1008552,93200.0,93199.0,0.44993955]
[1732093842139,0.1008552,93200.0,93199.0,0.47293955]
[1732093842608,0.1008552,93200.0,93199.0,0.51582755]
[1732093843318,0.1008552,93200.0,93199.0,0.52582755]
[1732093843981,0.1008552,93200.0,93199.0,0.65552755]
[1732093844666,0.1008552,93200.0,93199.0,0.65352755]
[1732093844885,0.1008552,93200.0,93199.0,0.65552755]
[1732093845319,0.1008552,93200.0,93199.0,0.65352755]
[1732093845541,0.1008552,93200.0,93199.0,0.65552755]
[1732093846386,0.1008552,93200.0,93199.0,0.65352755]
[1732093846634,0.1008552,93200.0,93199.0,0.65552755]
[1732093847746,2e-07,93200.0,93199.0,0.65552755]
[1732093848190,0.0443404,93241.0,93199.0,0.65552755]
[1732093848191,0.0443404,93241.0,93225.0,0.363847]
[1732093848412,0.0767,93239.0,93225.0,0.47290955]
[1732093849530,0.0767,93239.0,93225.0,0.48290955]
[1732093851530,0.0767,93239.0,93225.0,0.52731958]
[1732093854569,1.13532514,93243.0,93225.0,0.52931958]
[1732093856149,1.13532514,93243.0,93225.0,0.559778]
[1732093856371,1.13532514,93243.0,93225.0,0.52931958]
[1732093856592,0.0771,93246.0,93242.0,0.107247]
[1732093856818,0.0771,93246.0,93245.0,0.107244]
[1732093863954,0.5303556,93251.0,93246.0,0.107243]
[1732093869024,0.0008556,93251.0,93246.0,0.107243]
[1732093869698,0.0771,93246.0,93245.0,0.107243]
[1732093869970,0.124,93246.0,93244.0,0.107245]
[1732093870641,0.124,93246.0,93244.0,0.21449]
[1732093870873,0.124,93246.0,93245.0,0.107244]
[1732093871344,0.124,93246.0,93244.0,0.107245]
[1732093871564,0.124,93246.0,93245.0,0.107244]
[1732093872001,0.124,93246.0,93243.0,0.00171]
[1732093872214,0.107245,93244.0,93243.0,0.00171]
[1732093872480,0.236945,93244.0,93243.0,0.00171]
[1732093881353,0.1297,93244.0,93243.0,0.00171]
[1732093882475,0.0817,93244.0,93243.0,0.108956]
[1732093882958,0.000855,93246.0,93243.0,0.108956]
[1732093882959,0.000855,93246.0,93245.0,0.107244]
[1732093883193,0.000855,93246.0,93245.0,0.20252292]
[1732093883399,0.000855,93246.0,93245.0,0.107244]
[1732093883645,0.000855,93246.0,93245.0,0.20255197]
[1732093884313,0.000855,93246.0,93245.0,0.107244]
[1732093884760,0.000855,93246.0,93245.0,0.2025617]
[1732093885932,0.000855,93246.0,93245.0,0.107244]
[1732093886611,0.000855,93246.0,93245.0,0.25016452]
[1732093886836,0.0007106,93247.0,93245.0,0.25016452]
[1732093887086,0.0007106,93247.0,93246.0,0.107243]
[1732093887729,0.0007106,93247.0,93246.0,0.25016352]
[1732093888403,0.0007106,93247.0,93246.0,0.107243]
[1732093888821,0.24615853,93251.0,93246.0,0.25035859]
[1732093889033,0.24615853,93251.0,93250.0,0.107238]
[1732093889971,0.24615853,93251.0,93250.0,0.20264834]
[1732093890218,0.24615853,93251.0,93250.0,0.47720055]
[1732093890465,0.0008555,93252.0,93251.0,0.240237]
[1732093890680,0.0008555,93252.0,93251.0,0.34929955]
[1732093893751,0.0008555,93252.0,93251.0,0.35129955]
[1732093894440,0.0008555,93252.0,93251.0,0.34929955]
[1732093894878,0.0008555,93252.0,93251.0,0.35129955]
[1732093895059,0.0008555,93252.0,93251.0,0.34929955]
[1732093895556,0.0008555,93252.0,93251.0,0.35129955]
[1732093896252,0.0008555,93252.0,93251.0,0.39573642]
[1732093896458,0.0008555,93252.0,93251.0,0.39373642]
[1732093896682,0.0008555,93252.0,93251.0,0.39573642]
[1732093896900,0.0008555,93252.0,93251.0,0.39373642]
[1732093897339,0.0008555,93252.0,93251.0,0.39573642]
[1732093898003,0.0008555,93252.0,93251.0,0.39373642]
[1732093899531,0.0008555,93252.0,93251.0,0.39573642]
[1732093899954,0.0008555,93252.0,93251.0,0.39373642]
[1732093902431,0.0008555,93252.0,93251.0,0.40373642]
[1732093902683,0.0008555,93252.0,93251.0,0.45283642]
[1732093902951,9e-07,93256.0,93255.0,0.503712]
[1732093903192,9e-07,93256.0,93255.0,0.61277455]
[1732093904771,3e-07,93261.0,93260.0,0.02]
[1732093904980,3e-07,93261.0,93260.0,0.49118955]
[1732093905414,3e-07,93261.0,93260.0,0.48918955]
[1732093905863,3e-07,93261.0,93260.0,0.94364302]
[1732093906315,3e-07,93261.0,93260.0,0.51970852]
[1732093906527,3e-07,93261.0,93260.0,0.52170852]
[1732093908135,3e-07,93261.0,93260.0,0.49118955]
[1732093908386,1.19092892,93274.0,93273.0,0.250212]
[1732093908646,1.08371892,93274.0,93273.0,0.61275455]
[1732093910227,1.08371892,93274.0,93273.0,0.61475455]
[1732093910463,0.91218292,93274.0,93273.0,0.61475455]
[1732093910687,0.86929892,93274.0,93273.0,0.61475455]
[1732093910897,0.86929892,93274.0,93273.0,0.61275455]
[1732093911128,0.87015382,93274.0,93273.0,0.61475455]
[1732093911570,0.78438582,93274.0,93273.0,0.61475455]
[1732093911776,0.76294382,93274.0,93273.0,0.85202436]
[1732093912447,0.74150182,93274.0,93273.0,0.61475455]
[1732093913099,0.69861782,93274.0,93273.0,0.61475455]
[1732093913590,0.69861782,93274.0,93273.0,0.65927369]
[1732093914738,0.61284982,93274.0,93273.0,0.65927369]